bitfinex/quotes_SOLUSD_20240729
["timestamp","ask_amount","ask_price","bid_price","bid_amount"]
[1722266701361,5.353,186.82,186.75,20.0]
[1722266701765,5.353,186.81,186.73,25.3553]
[1722266702086,60.19,186.85,186.71,20.0]
[1722266702298,5.3536,186.79,186.71,25.3558]
[1722266702600,5.3531,186.81,186.74,20.0]
[1722266702755,5.3538,186.79,186.71,18.7452]
[1722266702954,5.3538,186.79,186.67,26.7847]
[1722266702955,16.274,186.78,186.65,20.0]
[1722266703174,5.3553,186.73,186.65,5.3575]
[1722266703404,0.17,186.72,186.65,20.0]
[1722266703763,0.17,186.72,186.63,33.3949]
[1722266704068,0.17,186.72,186.65,20.0]
[1722266704285,20.0,186.72,186.65,20.0]
[1722266704481,30.72,186.73,186.66,5.3573]
[1722266704785,0.17,186.72,186.65,20.0]
[1722266705086,30.72,186.77,186.69,5.3564]
[1722266705261,30.72,186.77,186.68,13.3916]
[1722266705262,20.0,186.76,186.68,13.3916]
[1722266705462,20.0,186.76,186.7,5.3561]
[1722266705657,16.104,186.78,186.71,5.3557]
[1722266705877,20.0,186.77,186.68,18.748]
[1722266706082,30.72,186.76,186.64,13.3941]
[1722266706262,5.3554,186.73,186.65,5.3575]
[1722266706589,5.3565,186.69,186.61,5.3586]
[1722266706886,0.17,186.68,186.61,5.3586]
[1722266707087,5.3571,186.67,186.6,13.3976]
[1722266707291,0.17,186.68,186.6,33.3976]
[1722266707484,0.17,186.68,186.61,5.3585]
[1722266707686,5.3576,186.65,186.57,5.361]
[1722266707892,5.3576,186.65,186.57,10.7206]
[1722266707893,0.17,186.64,186.57,10.7206]
[1722266708258,0.17,186.64,186.57,5.361]
[1722266708479,0.17,186.65,186.57,5.361]
[1722266708673,20.0,186.67,186.57,5.361]
[1722266708674,0.17,186.66,186.57,5.361]
[1722266709492,30.72,186.64,186.52,13.4028]
[1722266709681,5.3591,186.6,186.52,18.764]
[1722266709860,0.17,186.59,186.53,5.361]
[1722266710065,22.8422,186.62,186.52,13.4028]
[1722266710291,22.8422,186.62,186.52,18.7639]
[1722266710470,5.6988,186.61,186.52,18.7639]
[1722266710792,25.3593,186.6,186.51,5.3614]
[1722266710963,0.17,186.59,186.52,5.3613]
[1722266711165,5.6993,186.59,186.51,13.4039]
[1722266711368,0.17,186.59,186.52,1.07205984]
[1722266711592,0.17,186.59,186.54,5.3607]
[1722266711789,0.17,186.59,186.52,5.3611]
[1722266712010,5.699,186.6,186.52,5.3611]
[1722266712783,5.699,186.6,186.53,5.361]
[1722266712784,0.34,186.6,186.53,5.361]
[1722266712976,0.34,186.6,186.51,18.7653]
[1722266713203,5.6993,186.6,186.52,5.3613]
[1722266713409,5.6993,186.6,186.51,13.4039]
[1722266713410,5.3596,186.59,186.51,13.4039]
[1722266713583,0.34,186.58,186.51,18.7655]
[1722266714105,20.0,186.61,186.51,18.7655]
[1722266714106,20.0,186.61,186.51,13.4039]
[1722266714408,5.36,186.57,186.49,10.7231]
[1722266714590,5.3606,186.55,186.49,5.361]
[1722266714901,0.17,186.54,186.49,5.361]
[1722266715485,0.34,186.54,186.48,6.1255621]
[1722266715690,5.7009,186.54,186.48,6.1255621]
[1722266715885,0.34,186.54,186.48,6.1255621]
[1722266716083,6.4681,186.51,186.48,6.1255621]
[1722266717481,6.4681,186.51,186.48,0.7645621]
[1722266717689,11.8297,186.51,186.48,0.7645621]
[1722266718095,6.4681,186.51,186.48,0.7645621]
[1722266718696,0.17,186.52,186.48,0.7645621]
[1722266718904,25.7011,186.53,186.48,0.7645621]
[1722266719203,5.3613,186.52,186.48,0.7645621]
[1722266719391,0.17,186.53,186.48,0.7645621]
[1722266719786,5.5312,186.53,186.48,0.7645621]
[1722266719990,5.3611,186.53,186.48,0.7645621]
[1722266720184,37.3203,186.56,186.48,0.7645621]
[1722266720390,20.0,186.55,186.48,11.4877621]
[1722266720591,25.3605,186.55,186.48,6.1255621]
[1722266720792,20.0,186.55,186.48,6.1255621]
[1722266720999,5.3613,186.52,186.48,6.1255621]
[1722266721383,37.3203,186.56,186.48,0.7645621]
[1722266721384,0.17,186.51,186.48,0.7645621]
[1722266721601,0.17,186.53,186.48,6.1255621]
[1722266721785,20.0,186.55,186.48,11.4879621]
[1722266721786,25.3605,186.55,186.48,11.4879621]
[1722266721989,25.3605,186.55,186.48,6.1255621]
[1722266722385,6.6003,186.56,186.48,19.5314621]
[1722266722610,6.6003,186.56,186.5,5.3619]
[1722266722809,15.9255,186.59,186.52,5.361]
[1722266723310,15.9255,186.59,186.52,5.3613]
[1722266723618,5.3599,186.57,186.49,5.3619]
[1722266723909,5.3599,186.57,186.5,6.43403141]
[1722266724092,5.3599,186.57,186.5,5.3619]
[1722266724294,5.3602,186.56,186.48,44.8939621]
[1722266724494,5.3602,186.56,186.49,5.3621]
[1722266724723,5.3602,186.56,186.48,24.8941621]
[1722266724935,0.34,186.55,186.48,19.5317621]
[1722266725084,0.17,186.56,186.48,19.5317621]
[1722266725289,5.3607,186.55,186.48,19.5317621]
[1722266725512,5.3602,186.56,186.49,1.07222252]
[1722266725716,0.34,186.57,186.49,20.0]
[1722266725890,0.34,186.57,186.48,19.5317621]
[1722266726214,5.3602,186.56,186.48,19.5317621]
[1722266726418,0.34,186.55,186.48,24.8939621]
[1722266726591,0.34,186.55,186.49,5.3621]
[1722266726999,0.34,186.56,186.49,5.3621]
[1722266727196,0.34,186.57,186.49,5.3621]
[1722266727400,5.7,186.57,186.49,5.3621]
[1722266727596,0.34,186.57,186.48,19.5317621]
[1722266728093,5.3608,186.54,186.48,0.7645621]
[1722266728312,0.34,186.53,186.48,6.1255621]
[1722266728619,0.17,186.53,186.48,6.1255621]
[1722266728811,0.34,186.54,186.48,6.1255621]
[1722266729414,5.7008,186.54,186.48,0.7645621]
[1722266729598,5.3613,186.52,186.48,0.7645621]
[1722266729913,0.34,186.54,186.48,6.1255621]
[1722266730208,0.34,186.54,186.48,11.4879621]
[1722266730409,0.17,186.54,186.48,6.1255621]
[1722266730630,0.34,186.54,186.48,6.1255621]
[1722266730819,0.34,186.54,186.48,0.7645621]
[1722266731115,0.34,186.54,186.48,6.1255621]
[1722266731793,22.0083,186.51,186.48,6.1255621]
[1722266732189,0.34,186.5,186.48,0.7645621]
[1722266732412,0.17,186.5,186.48,0.7645621]
[1722266733096,27.3699,186.51,186.48,0.7645621]
[1722266733097,22.0083,186.51,186.48,0.7645621]
[1722266733299,0.17,186.5,186.48,0.7645621]
[1722266733693,5.3622,186.49,186.48,0.7645621]
[1722266733896,5.7022,186.49,186.48,0.7645621]
[1722266734225,0.34,186.49,186.48,0.7645621]
[1722266734411,22.0083,186.51,186.48,0.7645621]
[1722266734617,5.7019,186.5,186.48,0.7645621]
[1722266734913,5.3622,186.49,186.48,0.7645621]
[1722266735115,5.7022,186.49,186.48,0.7645621]
[1722266735315,5.5322,186.49,186.48,0.7645621]
[1722266735621,5.7022,186.49,186.48,0.7645621]
[1722266735920,0.17,186.49,186.48,0.7645621]
[1722266736120,5.5322,186.49,186.48,0.7645621]
[1722266736299,5.7022,186.49,186.48,0.7645621]
[1722266736901,22.0083,186.51,186.48,0.7645621]
[1722266737121,5.3622,186.49,186.48,0.7645621]
[1722266737424,5.7022,186.49,186.48,0.7645621]
[1722266739222,25.7022,186.49,186.48,0.7645621]
[1722266740215,6.0664,186.48,186.36,20.0]
[1722266740414,6.0664,186.48,186.29,7.19874152]
[1722266740415,28.01,186.43,186.29,7.19874152]
[1722266740722,5.3653,186.39,186.33,5.361]
[1722266740921,5.3654,186.38,186.33,5.361]
[1722266741099,5.365,186.4,186.33,5.361]
[1722266741299,5.3649,186.4,186.33,5.361]
[1722266741704,5.7045,186.41,186.33,10.7277]
[1722266741928,5.364,186.43,186.35,5.361]
[1722266742128,0.34,186.42,186.35,5.361]
[1722266742334,5.3647,186.41,186.35,5.361]
[1722266742627,0.34,186.4,186.35,5.361]
[1722266742800,5.3648,186.4,186.33,5.361]
[1722266743001,0.34,186.39,186.33,5.361]
[1722266743197,0.17,186.42,186.36,5.361]
[1722266743504,30.3042,186.43,186.38,5.361]
[1722266743821,24.94,186.43,186.38,5.361]
[1722266744520,25.3634,186.45,186.39,5.361]
[1722266744711,5.3642,186.42,186.39,5.361]
[1722266744904,20.0,186.45,186.39,5.361]
[1722266745105,20.0,186.47,186.39,5.361]
[1722266745405,24.94,186.44,186.38,5.361]
[1722266745822,44.94,186.47,186.4,5.361]
[1722266746012,24.94,186.47,186.4,5.361]
[1722266746327,24.94,186.44,186.4,5.361]
[1722266746824,24.94,186.44,186.38,5.361]
[1722266747035,0.34,186.43,186.38,5.361]
[1722266747532,24.94,186.47,186.4,5.361]
[1722266747706,25.3631,186.46,186.4,5.361]
[1722266748033,5.3635,186.45,186.4,5.361]
[1722266748233,5.3637,186.44,186.4,5.361]
[1722266748412,25.3633,186.46,186.37,25.361]
[1722266748613,25.3633,186.46,186.39,5.361]
[1722266749235,5.3634,186.45,186.39,5.361]
[1722266749405,5.3637,186.44,186.39,5.361]
[1722266749610,5.364,186.43,186.37,5.361]
[1722266750426,5.5343,186.42,186.37,5.361]
[1722266750638,5.3643,186.42,186.34,5.361]
[1722266751208,5.3643,186.42,186.34,10.7273]
[1722266751412,5.7046,186.41,186.34,5.361]
[1722266751719,5.5341,186.43,186.34,30.7273]
[1722266751918,0.17,186.43,186.36,5.361]
[1722266752115,0.17,186.43,186.36,10.7269]
[1722266752429,20.0,186.46,186.38,5.361]
[1722266752824,5.3636,186.45,186.38,5.361]
[1722266753334,5.3637,186.44,186.38,5.361]
[1722266753538,5.3634,186.45,186.38,5.361]
[1722266753915,25.363,186.46,186.4,5.361]
[1722266754239,20.0,186.46,186.4,5.361]
[1722266754425,5.3637,186.44,186.4,5.361]
[1722266755122,5.3637,186.44,186.38,5.361]
[1722266755512,5.3633,186.45,186.38,5.361]
[1722266755718,5.3633,186.45,186.4,5.361]
[1722266756235,5.3637,186.44,186.4,5.361]
[1722266756734,5.3637,186.44,186.38,5.361]
[1722266757134,20.0,186.46,186.38,5.361]
[1722266757135,5.364,186.43,186.38,5.361]
[1722266757923,5.364,186.43,186.37,5.361]
[1722266758361,5.3642,186.42,186.37,5.361]
[1722266758937,5.3648,186.4,186.36,5.361]
[1722266759145,24.94,186.44,186.36,5.361]
[1722266759459,5.3645,186.41,186.36,5.361]
[1722266759751,5.3648,186.4,186.36,5.361]
[1722266759949,24.94,186.44,186.36,5.361]
[1722266760154,0.17,186.43,186.36,5.361]
[1722266760368,25.11,186.44,186.36,5.361]
[1722266760672,20.0,186.46,186.39,5.361]
[1722266760867,13.4081,186.46,186.39,5.361]
[1722266761158,20.0,186.45,186.39,5.361]
[1722266761342,5.3647,186.41,186.39,5.361]
[1722266761545,20.0,186.45,186.35,5.361]
[1722266761931,0.17,186.44,186.37,5.361]
[1722266762152,20.0,186.45,186.37,5.361]
[1722266762466,5.3646,186.41,186.37,5.361]
[1722266762763,24.94,186.41,186.37,5.361]
[1722266763053,5.3651,186.39,186.32,5.361]
[1722266763556,24.94,186.41,186.32,18.7787]
[1722266763761,5.5348,186.4,186.32,38.7787]
[1722266763945,0.17,186.4,186.34,5.361]
[1722266764145,5.3643,186.42,186.36,5.361]
[1722266764352,0.17,186.43,186.36,5.361]
[1722266764657,5.3646,186.41,186.36,5.361]
[1722266764843,0.17,186.4,186.36,5.361]
[1722266765052,0.34,186.43,186.36,5.361]
[1722266765053,5.3642,186.42,186.36,5.361]
[1722266765430,0.34,186.43,186.36,5.361]
[1722266765646,20.0,186.45,186.37,5.361]
[1722266765647,0.34,186.44,186.37,5.361]
[1722266765858,25.3636,186.45,186.37,25.361]
[1722266766139,24.94,186.46,186.39,5.361]
[1722266766339,5.3628,186.47,186.39,10.726]
[1722266766555,5.3631,186.46,186.39,5.361]
[1722266766757,15.3513,186.48,186.39,5.361]
[1722266767139,5.3639,186.43,186.4,5.361]
[1722266767741,5.3642,186.42,186.4,5.361]
[1722266767957,5.3645,186.41,186.4,5.361]
[1722266768143,5.3645,186.41,186.34,5.361]
[1722266768958,25.28,186.4,186.34,5.361]
[1722266769135,5.3651,186.39,186.32,5.361]
[1722266769336,0.17,186.38,186.32,5.361]
[1722266769549,0.17,186.4,186.33,5.3668]
[1722266769739,36.424,186.43,186.34,5.361]
[1722266769938,31.06,186.43,186.34,5.361]
[1722266770152,5.3643,186.42,186.34,10.7274]
[1722266770635,24.94,186.46,186.37,5.361]
[1722266770852,5.3637,186.44,186.37,5.361]
[1722266771057,24.94,186.46,186.37,5.361]
[1722266771249,20.0,186.45,186.37,5.361]
[1722266771648,20.0,186.45,186.35,5.361]
[1722266772060,0.34,186.44,186.35,5.361]
[1722266772239,5.3648,186.4,186.35,5.361]
[1722266772437,0.17,186.39,186.35,5.361]
[1722266772660,0.17,186.39,186.32,5.361]
[1722266772963,0.34,186.39,186.34,5.361]
[1722266773142,0.17,186.39,186.34,5.361]
[1722266773340,20.0,186.45,186.34,38.7769]
[1722266773553,20.0,186.45,186.38,5.361]
[1722266773554,5.7037,186.44,186.38,5.361]
[1722266773752,5.3637,186.44,186.38,5.361]
[1722266773956,5.364,186.43,186.38,5.361]
[1722266774470,28.48998157,186.48,186.38,5.361]
[1722266774669,21.4713,186.48,186.35,5.361]
[1722266774847,5.3634,186.45,186.37,25.361]
[1722266775046,5.363,186.47,186.39,30.726]
[1722266775361,30.51922788,186.52,186.41,5.361]
[1722266775561,5.3628,186.47,186.41,5.361]
[1722266775763,30.51922788,186.52,186.41,5.361]
[1722266776267,30.51922788,186.52,186.43,5.3639]
[1722266776572,5.3631,186.46,186.4,5.361]
[1722266776950,5.3639,186.43,186.4,5.361]
[1722266777163,13.4042,186.51,186.4,5.361]
[1722266777164,5.3638,186.44,186.4,5.361]
[1722266777344,24.94,186.49,186.41,5.361]
[1722266777862,5.3625,186.48,186.41,5.361]
[1722266778241,5.3628,186.47,186.41,5.361]
[1722266778446,24.94,186.52,186.42,20.0]
[1722266778765,5.3623,186.49,186.42,20.0]
[1722266779464,10.94235434,186.53,186.46,20.0]
[1722266779875,5.3612,186.53,186.46,20.0]
[1722266780169,5.3613,186.52,186.46,20.0]
[1722266780663,5.3611,186.53,186.46,20.0]
[1722266780969,5.3608,186.54,186.48,20.0]
[1722266781149,5.3608,186.54,186.49,1.07215182]
[1722266781863,5.3608,186.54,186.48,20.0]
[1722266782162,5.3613,186.52,186.47,26.4768]
[1722266782349,5.361,186.54,186.49,20.0]
[1722266782543,13.3986,186.59,186.5,1.07215576]
[1722266782844,30.5186098,186.6,186.51,40.0]
[1722266782845,5.5786098,186.6,186.51,40.0]
[1722266783054,13.3977,186.6,186.49,40.0]
[1722266783256,24.94,186.59,186.48,1.0721013]
[1722266783453,24.94,186.59,186.49,1.07219307]
[1722266783765,5.3614,186.52,186.47,26.4768]
[1722266783971,5.3607,186.54,186.49,20.0]
[1722266784165,24.94,186.59,186.49,20.0]
[1722266784343,0.34,186.58,186.47,26.4768]
[1722266784646,5.3602,186.56,186.5,20.0]
[1722266785149,5.3599,186.58,186.52,20.0]
[1722266785355,5.3605,186.55,186.5,20.0]
[1722266785675,5.3599,186.57,186.5,25.3618]
[1722266785852,5.3599,186.57,186.5,20.0]
[1722266786353,5.3602,186.56,186.5,20.0]
[1722266787083,5.3602,186.56,186.5,40.0]
[1722266787487,53.8944,186.62,186.52,20.0]
[1722266787673,5.3602,186.56,186.52,20.0]
[1722266787988,53.8944,186.62,186.52,20.0]
[1722266788357,20.0,186.61,186.52,40.0]
[1722266788559,20.0,186.61,186.52,20.0]
[1722266788773,5.3617,186.51,186.47,6.4768]
[1722266788971,24.94,186.59,186.5,20.0]
[1722266789172,24.94,186.59,186.47,26.4768]
[1722266789173,5.3597,186.58,186.52,20.0]
[1722266789364,0.34,186.6,186.52,20.0]
[1722266789566,5.36,186.57,186.52,20.0]
[1722266789792,5.3598,186.58,186.52,20.0]
[1722266790169,5.3599,186.57,186.52,20.0]
[1722266790377,5.3603,186.56,186.5,20.0]
[1722266790705,5.3599,186.57,186.52,20.0]
[1722266791191,20.0,186.61,186.52,20.0]
[1722266791391,5.3596,186.58,186.52,20.0]
[1722266791690,5.3596,186.58,186.5,40.0]
[1722266791892,5.3596,186.58,186.5,45.3618]
[1722266792064,20.0,186.61,186.5,20.0]
[1722266792273,20.0,186.61,186.5,40.0]
[1722266792477,20.0,186.61,186.5,20.0]
[1722266792808,5.3595,186.59,186.52,40.0]
[1722266793088,5.3594,186.59,186.52,45.3613]
[1722266793276,5.3594,186.59,186.53,1.07192905]
[1722266793589,5.3594,186.59,186.52,40.0]
[1722266793590,5.3596,186.58,186.52,40.0]
[1722266793777,5.3588,186.61,186.54,20.0]
[1722266793977,5.3591,186.6,186.53,5.361]
[1722266794184,5.3596,186.59,186.53,20.0]
[1722266794382,5.3598,186.58,186.52,20.0]
[1722266794583,5.3598,186.58,186.51,33.4037]
[1722266794763,13.397,186.61,186.49,20.0]
[1722266794966,5.3602,186.56,186.49,20.0]
[1722266795168,24.94,186.59,186.47,59.8831]
[1722266795377,0.34,186.58,186.47,59.8831]
[1722266795574,5.3611,186.53,186.47,26.4768]
[1722266795783,5.3608,186.54,186.47,26.4768]
[1722266795997,5.3608,186.54,186.47,31.8395]
[1722266796194,5.3608,186.54,186.47,26.4768]
[1722266796492,24.94,186.56,186.49,5.362]
[1722266796493,30.3002,186.56,186.49,5.362]
[1722266796690,30.3002,186.56,186.48,5.3624]
[1722266796993,0.34,186.58,186.51,20.0]
[1722266797184,20.17,186.58,186.51,20.0]
[1722266797386,20.17,186.58,186.5,13.4047]
[1722266797387,5.3602,186.56,186.5,13.4047]
[1722266797584,5.3605,186.55,186.48,25.3624]
[1722266797805,20.17,186.58,186.49,20.0]
[1722266798096,5.3602,186.56,186.49,20.0]
[1722266798477,5.3605,186.55,186.49,20.0]
[1722266798775,20.17,186.58,186.49,20.0]
[1722266798975,5.3604,186.55,186.49,20.0]
[1722266799803,0.17,186.58,186.51,20.0]
[1722266799977,5.3598,186.58,186.51,45.3614]
[1722266800173,24.94,186.62,186.53,20.0]
[1722266800490,24.94,186.62,186.53,45.3608]
[1722266800798,13.3947,186.64,186.54,1.07185839]
[1722266801000,13.3947,186.64,186.55,1.07185839]
[1722266801199,5.3588,186.61,186.55,21.07185839]
[1722266802291,5.3585,186.62,186.55,46.43225839]
[1722266802597,5.3582,186.63,186.58,20.0]
[1722266802894,5.57726523,186.66,186.57,20.0]
[1722266803103,19.7942,186.67,186.55,33.401]
[1722266803600,5.3595,186.59,186.55,20.0]
[1722266804200,6.4016,186.67,186.57,20.0]
[1722266804498,20.0,186.66,186.57,20.0]
[1722266804680,5.3579,186.64,186.57,25.3597]
[1722266804871,25.3576,186.66,186.59,20.0]
[1722266805076,5.3578,186.65,186.59,20.0]
[1722266805381,20.0,186.66,186.59,20.0]
[1722266805719,5.3578,186.65,186.59,20.0]
[1722266806000,20.0,186.67,186.57,20.0]
[1722266806179,5.3579,186.64,186.59,20.0]
[1722266806377,5.3579,186.64,186.6,20.0]
[1722266806590,5.3579,186.64,186.59,20.0]
[1722266806776,5.3582,186.63,186.59,20.0]
[1722266806970,5.3578,186.65,186.59,20.0]
[1722266807189,5.3581,186.64,186.58,20.0]
[1722266807383,5.3586,186.62,186.57,20.0]
[1722266807680,5.3588,186.61,186.56,6.1463]
[1722266807881,33.3928,186.67,186.56,6.1463]
[1722266807882,33.3928,186.67,186.57,20.0]
[1722266808091,5.3587,186.62,186.57,20.0]
[1722266808789,5.3581,186.64,186.57,20.0]
[1722266808975,5.3581,186.64,186.57,45.3599]
[1722266809190,33.3928,186.67,186.59,20.0]
[1722266809374,16.2575,186.7,186.61,40.0]
[1722266809583,5.3565,186.69,186.61,25.3586]
[1722266809789,5.3568,186.68,186.62,1.07139194]
[1722266810016,6.0318,186.72,186.61,58.7553]
[1722266810017,5.3563,186.7,186.66,20.0]
[1722266810190,30.44609023,186.75,186.67,1.07117767]
[1722266810390,13.3844,186.79,186.66,25.3573]
[1722266810391,17.27611978,186.84,186.75,20.0]
[1722266810689,5.3536,186.79,186.73,40.0]
[1722266810893,5.3536,186.79,186.71,5.3558]
[1722266810894,40.061,186.84,186.71,20.0]
[1722266811092,40.061,186.84,186.74,20.0]
[1722266811410,40.061,186.84,186.74,40.0]
[1722266811411,5.353,186.81,186.74,40.0]
[1722266811596,40.061,186.84,186.72,40.0]
[1722266811795,53.4417,186.84,186.7,40.0]
[1722266811994,5.3534,186.8,186.72,45.3554]
[1722266812200,40.061,186.84,186.74,40.0]
[1722266812409,40.061,186.84,186.75,20.0]
[1722266812909,5.3527,186.82,186.75,25.3546]
[1722266813092,40.061,186.84,186.75,25.3546]
[1722266813294,30.9345,186.87,186.76,20.0]
[1722266813502,5.3528,186.82,186.75,40.0]
[1722266813688,5.3528,186.82,186.77,20.0]
[1722266814085,5.3532,186.81,186.77,20.0]
[1722266814392,5.3525,186.83,186.77,20.0]
[1722266814603,5.3521,186.85,186.78,20.0]
[1722266814907,30.9345,186.87,186.79,40.0]
[1722266815108,20.0,186.86,186.79,20.0]
[1722266815319,5.3518,186.85,186.8,20.0]
[1722266815487,20.0,186.86,186.8,20.0]
[1722266815488,5.3516,186.86,186.8,20.0]
[1722266815684,5.3516,186.86,186.81,1.07039128]
[1722266815887,16.0496,186.88,186.81,1.07039128]
[1722266815888,21.4007,186.88,186.81,1.07039128]
[1722266816091,5.3511,186.88,186.82,20.0]
[1722266816317,5.35,186.92,186.86,20.0]
[1722266816610,5.3496,186.93,186.88,20.0]
[1722266816916,28.3796,187.01,186.9,20.0]
[1722266817119,5.349,186.96,186.9,20.0]
[1722266817411,5.3491,186.95,186.88,20.0]
[1722266817613,5.35,186.92,186.86,20.0]
[1722266817819,5.3503,186.91,186.86,20.0]
[1722266818194,38.241,186.98,186.88,20.0]
[1722266818518,5.3499,186.92,186.88,20.0]
[1722266818720,5.3496,186.93,186.88,20.0]
[1722266819022,5.349,186.95,186.9,20.0]
[1722266819210,15.0108,187.01,186.9,20.0]
[1722266819415,5.3488,186.96,186.9,20.0]
[1722266819720,5.3488,186.96,186.89,38.7273]
[1722266820015,5.3488,186.96,186.91,20.0]
[1722266820225,5.3484,186.97,186.91,20.0]
[1722266820406,13.3697,186.99,186.89,20.0]
[1722266820930,13.3697,186.99,186.85,20.0]
[1722266820931,13.372,186.96,186.85,20.0]
[1722266821219,13.3707,186.98,186.88,20.0]
[1722266821424,13.3707,186.98,186.9,20.0]
[1722266821720,5.3488,186.96,186.9,40.0]
[1722266821928,15.0108,187.01,186.9,40.0]
[1722266822140,5.3484,186.97,186.9,40.0]
[1722266822507,5.349,186.95,186.89,13.3767]
[1722266822838,13.37,186.99,186.88,20.0]
[1722266823029,5.3487,186.97,186.91,20.0]
[1722266823414,5.3488,186.96,186.89,20.0]
[1722266823616,20.0,187.0,186.87,20.0]
[1722266823842,27.88,186.99,186.89,20.0]
[1722266824043,20.0,186.98,186.89,20.0]
[1722266824248,20.0,186.98,186.87,20.0]
[1722266824428,5.3487,186.97,186.89,20.0]
[1722266824748,20.0,186.96,186.89,25.3507]
[1722266824921,5.3487,186.96,186.89,5.3507]
[1722266825114,27.88,186.99,186.88,20.0]
[1722266825319,6.1140621,186.94,186.89,20.0]
[1722266825535,5.3496,186.93,186.87,40.0]
[1722266825835,5.3501,186.92,186.87,20.0]
[1722266826035,0.7645621,186.94,186.89,20.0]
[1722266826733,6.1138621,186.94,186.87,40.0]
[1722266827046,0.7645621,186.94,186.88,1.06995889]
[1722266827343,5.3501,186.92,186.85,13.3797]
[1722266827535,5.3505,186.9,186.84,20.0]
[1722266827845,0.34,186.93,186.85,1.0700907]
[1722266828016,0.34,186.93,186.86,20.0]
[1722266828223,5.35,186.92,186.85,41.07008829]
[1722266828549,0.7645621,186.94,186.87,20.0]
[1722266828852,6.1139621,186.94,186.87,25.3513]
[1722266829035,0.7645621,186.94,186.89,20.0]
[1722266829843,0.7645621,186.94,186.88,25.351]
[1722266830027,0.7645621,186.94,186.89,20.0]
[1722266830447,0.7645621,186.94,186.91,20.0]
[1722266830615,0.7645621,186.94,186.88,45.3508]
[1722266830818,0.7645621,186.94,186.88,40.0]
[1722266831125,0.7645621,186.94,186.88,20.0]
[1722266831335,0.7645621,186.94,186.88,25.3509]
[1722266831542,0.7645621,186.94,186.9,25.3504]
[1722266832050,0.7645621,186.94,186.9,20.0]
[1722266832353,0.7645621,186.94,186.9,25.3503]
[1722266832734,0.7645621,186.94,186.9,20.0]
[1722266833063,0.7645621,186.94,186.91,20.0]
[1722266833544,0.7645621,186.94,186.88,33.3769]
[1722266833752,0.7645621,186.94,186.89,25.3507]
[1722266833948,0.7645621,186.94,186.91,20.0]
[1722266834355,0.7645621,186.94,186.91,25.35]
[1722266834656,0.7645621,186.94,186.91,20.0]
[1722266835256,0.7645621,186.94,186.9,13.3754]
[1722266835858,0.7645621,186.94,186.87,20.0]
[1722266836035,0.7645621,186.94,186.89,25.3506]
[1722266836236,0.7645621,186.94,186.89,25.3507]
[1722266836531,0.7645621,186.94,186.91,25.3501]
[1722266836743,0.7645621,186.94,186.89,5.3504]